bitfinex-derivatives/quotes_SOLF0:USTF0_20241016
["timestamp","ask_amount","ask_price","bid_price","bid_amount"]
[1729067627602,12.2073,154.47,154.37,6.4787]
[1729067627603,8.97,154.47,154.42,4.8]
[1729067627801,8.97,154.44,154.42,4.8]
[1729067628013,3.2377,154.46,154.43,3.2379]
[1729067628205,8.97,154.45,154.43,3.2379]
[1729067628922,8.97,154.45,154.43,3.2381]
[1729067629613,12.2076,154.46,154.43,3.2381]
[1729067636327,12.2076,154.46,154.42,8.0382]
[1729067637619,3.2378,154.45,154.42,4.8]
[1729067637819,8.97,154.43,154.32,6.4806]
[1729067638123,12.2089,154.4,154.36,3.2396]
[1729067638319,12.2089,154.4,154.36,8.0396]
[1729067639410,8.97,154.4,154.37,3.2392]
[1729067639620,8.97,154.42,154.36,13.77]
[1729067639921,1.3613,154.44,154.41,3.2385]
[1729067640221,2.7432,154.49,154.42,8.97]
[1729067640416,8.97,154.47,154.44,3.2379]
[1729067640620,8.97,154.47,154.42,8.97]
[1729067641129,12.2073,154.47,154.43,3.238]
[1729067641325,1.3684,154.48,154.42,8.97]
[1729067641533,1.3684,154.48,154.43,8.97]
[1729067641825,4.6056,154.48,154.44,3.2379]
[1729067642614,8.97,154.47,154.44,3.2379]
[1729067643123,8.97,154.47,154.45,3.2377]
[1729067645034,8.97,154.47,154.43,4.8]
[1729067645231,12.2075,154.47,154.44,3.2378]
[1729067645814,8.97,154.47,154.45,3.2376]
[1729067647120,12.2073,154.47,154.45,3.2376]
[1729067648134,8.97,154.47,154.45,3.2376]
[1729067649027,4.6056,154.48,154.43,8.97]
[1729067649620,4.6056,154.48,154.45,3.2376]
[1729067650519,4.6056,154.48,154.46,3.2375]
[1729067652939,10.3384,154.48,154.43,8.97]
[1729067653131,8.97,154.46,154.42,4.78]
[1729067653331,8.97,154.43,154.39,4.78]
[1729067653533,12.2084,154.42,154.39,8.0188]
[1729067653731,8.97,154.42,154.39,4.78]
[1729067654529,8.97,154.42,154.4,3.2387]
[1729067655036,8.97,154.42,154.39,4.78]
[1729067656334,8.97,154.4,154.39,4.78]
[1729067656535,8.97,154.4,154.37,4.78]
[1729067656832,8.97,154.38,154.34,4.78]
[1729067657238,8.97,154.38,154.35,3.2398]
[1729067657738,8.97,154.38,154.34,4.78]
[1729067658033,8.97,154.39,154.34,13.75]
[1729067658232,1.3844,154.42,154.36,8.97]
[1729067658233,10.3544,154.42,154.36,8.97]
[1729067658437,10.3544,154.42,154.38,8.97]
[1729067658826,1.3844,154.42,154.41,3.2386]
[1729067659426,1.3844,154.42,154.38,13.75]
[1729067659741,1.3844,154.42,154.39,3.239]
[1729067660633,4.6228,154.42,154.39,3.239]
[1729067661935,1.3844,154.42,154.39,3.239]
[1729067662647,1.4098,154.49,154.4,8.97]
[1729067662829,8.97,154.45,154.4,8.97]
[1729067663436,8.97,154.47,154.42,8.97]
[1729067663733,1.3837,154.48,154.42,8.97]
[1729067663939,4.6209,154.48,154.39,13.99]
[1729067665034,4.6209,154.48,154.44,3.2378]
[1729067667043,4.6209,154.48,154.45,3.2377]
[1729067668642,3.2373,154.47,154.45,3.2377]
[1729067671241,1.3837,154.48,154.45,3.2377]
[1729067671444,4.6209,154.48,154.45,3.2377]
[1729067673947,1.3837,154.48,154.45,3.2377]
[1729067674148,13.99,154.47,154.43,3.2381]
[1729067674347,13.99,154.47,154.42,4.78]
[1729067674846,3.2376,154.46,154.43,3.238]
[1729067675847,3.28530259,154.45,154.43,3.238]
[1729067676150,3.2378,154.45,154.43,3.238]
[1729067677350,13.99,154.47,154.43,3.238]
[1729067677655,3.2376,154.46,154.43,3.238]
[1729067678157,3.26781379,154.45,154.43,3.238]
[1729067678555,3.19818248,154.44,154.41,3.2385]
[1729067678953,3.2381,154.44,154.41,3.2385]
[1729067682269,13.99,154.47,154.43,3.2381]
[1729067682868,3.2375,154.46,154.43,3.2381]
[1729067683067,13.99,154.47,154.39,4.76]
[1729067683773,17.2273,154.47,154.44,3.2378]
[1729067685869,8.95,154.45,154.44,3.2378]
[1729067686874,8.95,154.46,154.44,3.2378]
[1729067688269,8.95,154.46,154.36,3.19072869]
[1729067688270,8.95,154.45,154.23,8.93874406]
[1729067688467,5.1,154.45,154.25,3.92320181]
[1729067688666,5.1,154.45,154.25,2.7327]
[1729067688667,8.95,154.3,154.25,2.7327]
[1729067688868,8.95,154.28,154.27,3.2415]
[1729067689278,9.69550181,154.34,154.25,2.7327]
[1729067689582,8.95,154.29,154.25,2.7327]
[1729067689877,6.5228,154.34,154.14,72.91958135]
[1729067689878,8.95,154.26,154.24,3.242]
[1729067690071,8.95,154.26,154.14,69.94]
[1729067690072,8.95,154.24,154.2,5.1]
[1729067690271,8.95,154.24,154.16,4.59014769]
[1729067690272,8.95,154.22,154.17,8.95]
[1729067690479,8.95,154.21,154.2,3.2428]
[1729067691976,14.01,154.24,154.18,5.1]
[1729067692184,14.01,154.26,154.18,5.1]
[1729067692876,14.01,154.26,154.22,3.2425]
[1729067693980,14.01,154.26,154.18,5.1]
[1729067694288,14.01,154.26,154.21,3.2428]
[1729067695082,14.01,154.26,154.18,5.1]
[1729067695272,14.01,154.26,154.22,3.2425]
[1729067696170,17.2517,154.26,154.21,3.2427]
[1729067696983,14.01,154.26,154.23,3.2422]
[1729067697285,22.3514,154.28,154.18,5.1]
[1729067697676,22.3514,154.28,154.21,3.2428]
[1729067697873,17.2514,154.28,154.18,5.1]
[1729067698583,17.2514,154.28,154.23,3.2422]
[1729067698785,3.2416,154.27,154.23,3.2422]
[1729067698979,14.01,154.28,154.23,3.2422]
[1729067699285,17.2514,154.28,154.23,3.2422]
[1729067700381,3.2416,154.27,154.23,3.2423]
[1729067700685,14.01,154.28,154.18,5.1]
[1729067700980,14.01,154.28,154.24,3.242]
[1729067702088,14.01,154.28,154.25,3.2419]
[1729067703178,14.01,154.26,154.17,14.01]
[1729067703484,14.01,154.26,154.18,5.1]
[1729067703691,14.01,154.22,154.16,5.1]
[1729067704078,1.3888,154.25,154.16,5.1]
[1729067704399,5.1,154.28,154.18,14.01]
[1729067704687,5.1,154.29,154.18,14.01]
[1729067704878,3.2412,154.29,154.24,3.242]
[1729067705081,14.01,154.27,154.21,5.1]
[1729067705879,17.2516,154.27,154.22,3.2425]
[1729067707378,17.2516,154.27,154.21,5.1]
[1729067707576,17.2516,154.27,154.23,3.2423]
[1729067711590,14.01,154.27,154.21,5.1]
[1729067711789,14.01,154.27,154.24,3.2419]
[1729067712676,6.55353153,154.26,154.22,3.2424]
[1729067712987,1.3888,154.32,154.22,5.1]
[1729067713286,6.4888,154.32,154.22,5.1]
[1729067713884,1.3888,154.32,154.22,5.1]
[1729067714694,4.6293,154.32,154.28,3.2412]
[1729067716794,17.2509,154.3,154.27,3.2413]
[1729067716990,14.01,154.28,154.19,14.01]
[1729067717187,17.2518,154.26,154.22,3.2425]
[1729067717494,17.2518,154.26,154.2,5.1]
[1729067717495,14.01,154.24,154.17,5.1]
[1729067717683,14.01,154.22,154.17,5.1]
[1729067718281,14.01,154.22,154.21,3.2428]
[1729067719694,14.01,154.22,154.17,5.1]
[1729067719997,14.01,154.24,154.17,5.1]
[1729067721898,14.01,154.24,154.2,3.2429]
[1729067722992,17.2522,154.24,154.2,3.2429]
[1729067725003,14.01,154.24,154.16,5.34]
[1729067725905,14.01,154.24,154.22,3.2425]
[1729067726296,14.01,154.24,154.16,5.34]
[1729067727504,14.01,154.24,154.22,3.2425]
[1729067728705,14.01,154.24,154.21,3.2427]
[1729067729111,14.01,154.24,154.16,5.34]
[1729067729409,14.01,154.24,154.2,3.2428]
[1729067729410,17.2523,154.24,154.2,3.2428]
[1729067729905,14.01,154.22,154.14,69.94]
[1729067730206,14.01,154.2,154.13,5.36]
[1729067730408,1.333,154.19,154.13,5.36]
[1729067730711,1.333,154.19,154.12,5.36]
[1729067731900,1.333,154.19,154.17,3.2435]
[1729067734311,1.333,154.19,154.12,5.36]
[1729067735009,1.333,154.19,154.17,3.2436]
[1729067736715,1.333,154.19,154.12,5.36]
[1729067737299,1.333,154.19,154.12,19.37]
[1729067737499,14.01,154.22,154.14,14.01]
[1729067737699,10.07002533,154.34,154.14,14.01]
[1729067737700,229.0,154.4,154.21,120.93097736]
[1729067737903,2.8507,154.37,154.31,14.01]
[1729067738108,1.4182,154.37,154.31,14.01]
[1729067738614,1.4325,154.44,154.33,14.01]
[1729067738800,1.4182,154.43,154.35,14.01]
[1729067739210,4.6564,154.43,154.36,3.2396]
[1729067739707,4.6564,154.43,154.29,6.7]
[1729067739708,14.01,154.4,154.34,3.2399]
[1729067739912,1.4184,154.39,154.34,3.2399]
[1729067740304,1.4184,154.39,154.3,14.01]
[1729067740511,14.01,154.38,154.33,3.2401]
[1729067740700,14.01,154.38,154.29,6.7]
[1729067741213,1.4184,154.39,154.3,14.01]
[1729067741513,1.4184,154.39,154.33,3.24]
[1729067741708,14.01,154.38,154.26,14.01]
[1729067741912,14.01,154.38,154.1,3.27527234]
[1729067741913,22.42,154.34,154.21,213.39097736]
[1729067742103,22.42,154.34,154.26,3.2417]
[1729067742104,1.3323,154.33,154.26,3.2417]
[1729067742309,1.3323,154.33,154.23,8.1156]
[1729067744314,22.42,154.32,154.23,6.7]
[1729067744507,22.42,154.32,154.26,3.2416]
[1729067744911,22.42,154.32,154.24,6.7]
[1729067745112,22.42,154.32,154.27,3.2415]
[1729067746819,25.6605,154.32,154.27,3.2415]
[1729067748025,25.6605,154.32,154.24,6.7]
[1729067748318,25.6605,154.32,154.28,3.2413]
[1729067749721,1.3323,154.33,154.24,6.7]
[1729067750021,1.3323,154.33,154.31,3.2406]
[1729067752521,4.5726,154.33,154.29,3.241]
[1729067752718,22.42,154.32,154.24,6.7]
[1729067753218,3.2407,154.31,154.28,3.2413]
[1729067753424,22.42,154.32,154.28,3.2413]
[1729067753719,1.3323,154.33,154.3,3.2408]
[1729067753922,1.3323,154.33,154.24,6.7]
[1729067754122,1.3323,154.33,154.24,29.12]
[1729067754326,1.3323,154.33,154.32,3.2405]
[1729067755323,1.3323,154.33,154.31,3.2407]
[1729067756319,1.3323,154.33,154.3,3.2408]
[1729067756517,1.3323,154.33,154.24,29.12]
[1729067756722,1.3323,154.33,154.21,76.5255]
[1729067756723,22.42,154.32,154.25,6.7]
[1729067757220,23.7612,154.32,154.25,6.7]
[1729067757420,23.7612,154.32,154.21,70.04]
[1729067757621,23.7612,154.32,154.23,6.7]
[1729067758022,3.2408,154.31,154.27,3.2414]
[1729067759824,23.7612,154.32,154.27,3.2414]
[1729067760027,3.2409,154.3,154.27,3.2414]
[1729067763018,3.2407,154.31,154.28,3.2413]
[1729067763222,1.3323,154.33,154.23,6.7]
[1729067763424,1.3323,154.33,154.24,22.42]
[1729067763918,1.3323,154.33,154.24,14.0]
[1729067765926,1.3323,154.33,154.3,3.2409]
[1729067766827,1.3323,154.33,154.24,22.42]
[1729067767128,3.2409,154.3,154.26,3.2416]
[1729067767324,1.3323,154.33,154.23,6.7]
[1729067767527,3.2406,154.32,154.28,3.2411]
[1729067767727,1.3323,154.33,154.23,6.7]
[1729067768118,1.3323,154.33,154.3,3.2407]
[1729067768329,1.3323,154.33,154.23,6.7]
[1729067768925,4.5726,154.33,154.3,3.2409]
[1729067769121,1.3323,154.33,154.23,6.7]
[1729067769318,22.42,154.31,154.23,6.7]
[1729067769529,3.241,154.3,154.26,3.2415]
[1729067772035,3.2408,154.31,154.27,3.2414]
[1729067772234,1.3323,154.33,154.23,6.7]
[1729067772429,1.3323,154.33,154.24,22.42]
[1729067772634,1.3468,154.37,154.32,3.2405]
[1729067773132,3.2398,154.36,154.32,3.2405]
[1729067773339,1.4211,154.38,154.35,3.2397]
[1729067774034,1.4211,154.38,154.29,25.1864]
[1729067774430,1.4211,154.38,154.35,3.2397]
[1729067774632,22.42,154.42,154.33,6.34]
[1729067774844,1.3517,154.42,154.34,6.34]
[1729067775238,4.5901,154.42,154.34,6.34]
[1729067775535,1.3517,154.42,154.4,3.2387]
[1729067775733,23.8015,154.48,154.34,28.76]
[1729067775934,34.7305,154.48,154.34,28.76]
[1729067776131,31.4932,154.48,154.41,3.2384]
[1729067776837,3.2375,154.46,154.42,3.2383]
[1729067778334,31.4932,154.48,154.39,6.34]
[1729067779031,3.2373,154.47,154.39,6.34]
[1729067779636,3.2375,154.46,154.42,3.2382]
[1729067780236,3.2382,154.43,154.4,3.2387]
[1729067780630,22.42,154.45,154.37,6.34]
[1729067780833,25.64570977,154.45,154.37,6.34]
[1729067781037,25.64570977,154.45,154.38,3.2391]
[1729067781635,25.64570977,154.45,154.37,6.34]
[1729067781636,3.2383,154.43,154.39,3.2389]
[1729067782035,25.64570977,154.45,154.37,6.34]
[1729067782231,2.7332,154.48,154.37,6.34]
[1729067782743,3.2379,154.44,154.4,3.2387]
[1729067785339,25.66611541,154.47,154.37,6.34]
[1729067785543,3.2384,154.42,154.39,3.2389]
[1729067786348,3.2383,154.43,154.39,3.2389]
[1729067786644,25.66611541,154.47,154.38,3.2391]
[1729067786845,3.2376,154.46,154.37,6.34]
[1729067787036,22.42,154.47,154.37,6.34]
[1729067787237,3.26716884,154.46,154.4,3.2387]
[1729067787638,3.238,154.44,154.4,3.2387]
[1729067788134,3.22409028,154.46,154.4,3.2387]
[1729067788340,3.2382,154.43,154.4,3.2387]
[1729067788743,3.2384,154.42,154.37,6.34]
[1729067789442,22.42,154.47,154.37,6.34]
[1729067789652,3.2381,154.44,154.4,3.2387]
[1729067790444,3.2383,154.43,154.39,3.2388]
[1729067792146,3.2381,154.44,154.39,3.2389]
[1729067792347,3.2381,154.44,154.37,6.34]
[1729067792854,3.2381,154.44,154.4,3.2386]
[1729067793756,16.7232,154.48,154.42,3.2382]
[1729067793947,3.279477,154.47,154.37,6.34]
[1729067794249,3.2382,154.43,154.4,3.2387]
[1729067794552,13.99,154.45,154.4,3.2387]
[1729067794742,3.238,154.44,154.4,3.2387]
[1729067795337,3.2386,154.41,154.37,3.2392]
[1729067795541,3.2386,154.41,154.36,6.0]
[1729067795747,13.99,154.43,154.36,6.0]
[1729067795952,3.2383,154.43,154.39,3.2389]
[1729067796752,3.2384,154.42,154.39,3.2389]
[1729067797548,3.2384,154.42,154.38,3.2391]
[1729067802150,3.238,154.44,154.4,3.2386]
[1729067802357,13.99,154.47,154.36,6.0]
[1729067802548,3.17017264,154.46,154.36,6.0]
[1729067802964,3.238,154.44,154.4,3.2386]
[1729067803954,3.238,154.44,154.41,3.2385]
[1729067804157,13.99,154.47,154.36,6.0]
[1729067804352,3.2377,154.45,154.36,6.0]
[1729067804561,3.2377,154.45,154.42,3.2383]
[1729067805655,17.18158799,154.47,154.37,13.99]
[1729067805854,17.18158799,154.47,154.43,3.2381]
[1729067805855,3.2376,154.46,154.43,3.2381]
[1729067808759,2.7332,154.48,154.4,6.0]
[1729067809261,2.7332,154.48,154.44,3.2377]
[1729067809262,3.2374,154.47,154.44,3.2377]
[1729067809462,3.2374,154.47,154.4,6.0]
[1729067809768,3.2376,154.46,154.43,3.238]
[1729067811557,3.2377,154.45,154.43,3.238]
[1729067811860,2.7332,154.48,154.43,3.238]
[1729067812261,3.2377,154.46,154.4,6.0]
[1729067813864,6.54451132,154.47,154.4,6.0]
[1729067815366,6.54451132,154.47,154.44,3.2379]
[1729067817359,6.54451132,154.47,154.45,3.2377]
[1729067818770,3.2376,154.46,154.4,6.0]
[1729067819161,3.30711132,154.47,154.4,6.0]
[1729067819562,3.2375,154.46,154.44,3.2378]
[1729067819765,8.95,154.46,154.41,8.95]
[1729067820568,8.95,154.46,154.44,3.2378]
[1729067820961,8.95,154.46,154.41,8.95]
[1729067821268,8.95,154.46,154.45,3.2377]
[1729067823563,12.1875,154.46,154.44,3.2379]
[1729067825564,8.95,154.46,154.4,6.0]
[1729067825765,8.95,154.46,154.45,3.2377]
[1729067826168,8.95,154.46,154.44,3.2381]
[1729067826370,8.95,154.46,154.41,8.95]
[1729067826973,8.95,154.46,154.44,3.2382]
[1729067827470,8.95,154.45,154.39,5.66]
[1729067827671,8.95,154.43,154.38,14.61]
[1729067828065,8.95,154.43,154.4,3.239]
[1729067830770,12.1885,154.43,154.4,3.2391]
[1729067831774,8.95,154.43,154.4,3.2391]
[1729067832177,8.95,154.41,154.29,6.4825]
[1729067832370,8.95,154.38,154.33,5.66]
[1729067832782,8.95,154.38,154.36,3.2399]
[1729067833275,8.95,154.38,154.36,3.2398]
[1729067837585,8.95,154.36,154.31,14.61]
[1729067838080,8.95,154.36,154.34,3.2402]
[1729067839779,8.95,154.36,154.31,5.66]
[1729067839990,12.1899,154.36,154.33,3.2406]
[1729067840281,8.95,154.35,154.33,3.2406]
[1729067841081,8.95,154.35,154.29,8.95]
[1729067841386,8.95,154.31,154.27,14.61]
[1729067841789,8.95,154.32,154.3,3.2412]
[1729067842583,3.2404,154.34,154.32,3.2408]
[1729067842584,8.95,154.34,154.32,3.2408]
[1729067842780,8.95,154.34,154.28,8.95]
[1729067843188,8.95,154.31,154.26,5.66]
[1729067843393,8.95,154.29,154.26,5.66]
[1729067843688,8.95,154.29,154.28,3.2416]
[1729067844190,8.95,154.29,154.26,5.66]
[1729067844489,8.95,154.29,154.28,3.2416]
[1729067844680,8.95,154.3,154.26,14.61]
[1729067844882,8.95,154.32,154.29,3.2413]
[1729067847988,10.2884,154.36,154.3,8.95]
[1729067848195,1.3384,154.36,154.31,8.95]
[1729067848685,1.3384,154.36,154.34,3.2402]
[1729067853581,1.3384,154.36,154.33,3.2405]
[1729067856794,4.5784,154.36,154.33,3.2405]
[1729067857194,4.5784,154.36,154.3,5.66]
[1729067857494,3.2402,154.35,154.32,3.2407]
[1729067857691,1.3384,154.36,154.32,3.2407]
[1729067858093,4.5784,154.36,154.32,3.2407]
[1729067859991,3.2403,154.35,154.31,3.2408]
[1729067861499,3.2403,154.35,154.32,3.2407]
[1729067863795,14.01,154.35,154.28,5.36]
[1729067863992,14.01,154.33,154.26,5.36]
[1729067864501,3.2409,154.32,154.28,3.2414]
[1729067864996,3.2409,154.32,154.26,5.36]
[1729067865303,3.2409,154.32,154.29,3.2414]
[1729067867387,14.01,154.35,154.26,5.36]
[1729067867600,9.9383,154.36,154.33,3.2404]
[1729067870998,1.3384,154.36,154.28,14.01]
[1729067871199,1.3384,154.36,154.35,3.2402]
[1729067872302,10.3058,154.38,154.36,3.2399]
[1729067874405,3.2399,154.37,154.34,3.2402]
[1729067874603,8.96,154.36,154.34,3.2402]
[1729067875106,8.96,154.36,154.26,2.7509]
[1729067875404,8.2093,154.36,154.27,5.36]
[1729067875601,2.8493,154.36,154.29,8.96]
[1729067875793,10.2871,154.39,154.37,3.2396]
[1729067875997,8.96,154.39,154.33,5.36]
[1729067876200,8.96,154.38,154.33,5.36]
[1729067876701,8.96,154.34,154.28,5.36]
[1729067877004,8.96,154.34,154.29,3.2412]
[1729067877207,8.96,154.34,154.28,5.36]
[1729067877806,12.20356776,154.34,154.28,5.36]
[1729067878004,8.96,154.34,154.32,3.2407]
[1729067878206,8.96,154.36,154.31,8.96]
[1729067879006,8.96,154.36,154.34,3.2403]
[1729067879513,8.96,154.35,154.29,8.96]
[1729067879701,8.96,154.35,154.32,3.2407]
[1729067879899,8.96,154.33,154.26,8.1109]
[1729067880096,1.3589,154.34,154.29,3.2414]
[1729067880296,1.3589,154.34,154.27,8.96]
[1729067880297,8.96,154.33,154.27,8.96]
[1729067881115,8.96,154.35,154.28,8.96]
[1729067881309,8.96,154.35,154.3,8.96]
[1729067881532,8.96,154.35,154.31,3.2409]
[1729067881717,8.96,154.34,154.28,8.96]
[1729067882507,8.96,154.34,154.31,3.2409]
[1729067882812,8.96,154.32,154.31,3.2409]
[1729067883815,1.4203,154.37,154.27,8.96]
[1729067884109,8.96,154.35,154.34,3.2403]
[1729067885908,4.61006334,154.38,154.31,8.96]
[1729067886110,8.96,154.4,154.37,3.2397]
[1729067886312,8.96,154.4,154.34,8.96]
[1729067886711,8.96,154.4,154.39,3.2393]
[1729067887414,1.3508,154.44,154.39,3.2393]
[1729067887415,8.96,154.41,154.39,3.2393]
[1729067887809,1.3508,154.44,154.37,8.96]
[1729067888012,1.3508,154.44,154.34,5.3]
[1729067888013,8.96,154.44,154.39,8.96]
[1729067889815,3.2379,154.46,154.42,3.2385]
[1729067890022,13.99,154.47,154.38,5.3]
[1729067890922,13.99,154.47,154.41,3.2387]
[1729067891119,13.99,154.45,154.38,5.3]
[1729067891822,13.99,154.45,154.41,3.2389]
[1729067896815,13.99,154.45,154.38,5.3]
[1729067897522,13.99,154.45,154.41,3.2387]
[1729067898326,13.99,154.42,154.35,1.3189]
[1729067898514,13.99,154.4,154.35,5.3]
[1729067899540,13.99,154.4,154.36,3.2398]
[1729067900721,13.99,154.4,154.35,5.3]
[1729067901432,3.2394,154.39,154.36,3.2399]
[1729067901623,13.99,154.4,154.35,5.3]
[1729067902024,3.2394,154.39,154.35,5.3]
[1729067902330,13.99,154.4,154.35,5.3]
[1729067902628,4.6843,154.41,154.37,3.2396]
[1729067902931,1.4453,154.41,154.35,5.3]
[1729067903718,17.16296326,154.42,154.35,5.3]
[1729067904026,20.40166326,154.42,154.35,5.3]
[1729067904424,13.99,154.42,154.39,3.2392]
[1729067905333,3.2386,154.43,154.39,3.2392]
[1729067905719,17.2284,154.44,154.37,3.2396]
[1729067905931,17.2284,154.44,154.35,5.3]
[1729067906120,13.99,154.46,154.37,13.99]
[1729067906325,3.2382,154.45,154.41,3.2387]
[1729067907827,3.2382,154.45,154.42,3.2386]
[1729067908233,13.99,154.46,154.39,5.3]
[1729067908437,9.383,154.47,154.39,5.3]
[1729067908438,4.083,154.47,154.39,5.3]
[1729067908728,2.6679,154.47,154.39,5.3]
[1729067908935,2.6679,154.47,154.44,3.2381]
[1729067909637,1.3069,154.47,154.39,5.3]
[1729067909837,1.3069,154.47,154.45,3.2381]
[1729067912036,10.2569,154.47,154.45,3.2381]
[1729067912236,8.95,154.46,154.45,3.2381]
[1729067913834,10.2569,154.47,154.45,3.2381]
[1729067915030,8.95,154.46,154.39,5.3]
[1729067915232,8.95,154.44,154.39,5.3]
[1729067915430,8.95,154.45,154.4,8.95]
[1729067915937,8.95,154.45,154.43,3.2384]
[1729067916441,8.95,154.44,154.4,8.95]
[1729067916742,8.95,154.44,154.41,3.2388]
[1729067917742,8.95,154.44,154.38,14.17]
[1729067917935,8.95,154.44,154.41,3.2388]
[1729067918134,8.95,154.42,154.38,5.22]
[1729067918753,1.0,154.5,154.41,8.95]
[1729067918952,1.0,154.5,154.42,5.22]
[1729067919262,1.0,154.5,154.46,8.95]
[1729067919449,1.0,154.5,154.46,14.17]
[1729067919954,1.0,154.5,154.48,3.2373]
[1729067920160,1.0,154.5,154.45,5.22]
[1729067920361,1.0,154.5,154.44,5.22]
[1729067923066,1.0,154.5,154.48,3.2372]
[1729067923560,1.0,154.5,154.44,5.22]
[1729067923859,1.0,154.5,154.49,3.2372]
[1729067925055,1.0,154.64,154.52,287.0]
[1729067925253,13.98,154.62,154.53,5.6]
[1729067925853,13.98,154.62,154.57,3.2355]
[1729067927176,13.98,154.6,154.52,292.6]
[1729067927466,16.822,154.6,154.52,292.6]
[1729067928367,20.0571,154.6,154.55,3.236]
[1729067928568,20.0571,154.6,154.52,292.6]
[1729067928569,13.98,154.62,154.52,292.6]
[1729067929471,13.98,154.62,154.57,3.2355]
[1729067930566,17.2145,154.62,154.57,3.2355]
[1729067931571,2.8699,154.63,154.49,5.6]
[1729067931572,14.98,154.58,154.49,5.6]
[1729067931866,1.3907,154.57,154.49,5.6]
[1729067932473,1.3907,154.57,154.53,3.2364]
[1729067932974,4.6263,154.57,154.49,5.6]
[1729067933373,5.9561,154.57,154.49,5.6]
[1729067933573,2.7205,154.57,154.53,3.2364]
[1729067933873,2.7205,154.57,154.49,5.6]
[1729067934778,2.7205,154.57,154.53,3.2362]
[1729067935985,17.216,154.55,154.5,3.237]
[1729067936275,13.98,154.55,154.5,3.237]
[1729067936677,17.216,154.55,154.51,3.2367]
[1729067939879,17.216,154.55,154.49,3.2371]
[1729067940076,17.216,154.55,154.47,5.6]
[1729067940575,1.0,154.58,154.54,13.98]
[1729067940775,1.0,154.58,154.53,5.6]
[1729067941083,4.2355,154.58,154.54,3.236]
[1729067941785,3.2357,154.57,154.53,3.2363]
[1729067943173,3.2357,154.57,154.54,3.2361]
[1729067943572,3.2357,154.57,154.5,5.6]
[1729067943977,3.2358,154.56,154.53,3.2363]
[1729067944173,3.31533512,154.55,154.5,5.6]
[1729067944382,13.98,154.56,154.5,5.6]
[1729067944575,3.2363,154.54,154.51,3.2366]
[1729067945281,4.5523,154.54,154.51,3.2366]
[1729067945582,1.316,154.54,154.52,3.2366]
[1729067946092,1.316,154.54,154.47,19.58]
[1729067946288,1.0,154.58,154.49,13.98]
[1729067946979,1.0,154.58,154.55,3.2358]
[1729067947381,1.0,154.58,154.51,5.6]
[1729067947976,4.2355,154.58,154.54,3.236]